[Event "*** SCC Grand Prix: Titled Tuesday Blitz"]
[Site "Chess.com"]
[Date "2020.09.08"]
[Round "3"]
[White "nitpicker"]
[Black "dbrankovic68"]
[Result "1/2-1/2"]
[WhiteElo "2242"]
[BlackElo "2441"]
[TimeControl "180+1"]
[EndTime "10:29:34 PDT"]
[Termination "Game drawn by agreement"]

1. d4 {[%clk 0:03:00.9]} 1... Nf6 {[%clk 0:03:00]} 2. c4 {[%clk 0:03:00.9]} 2...
e6 {[%clk 0:03:00.6]} 3. Nf3 {[%clk 0:03:00.2]} 3... Bb4+ {[%clk 0:03:00.9]} 4.
Nbd2 {[%clk 0:02:59.8]} 4... c5 {[%clk 0:03:01.2]} 5. e3 {[%clk 0:02:58.6]} 5...
Nc6 {[%clk 0:03:01.1]} 6. a3 {[%clk 0:02:56.7]} 6... Bxd2+ {[%clk 0:03:00.9]} 7.
Qxd2 {[%clk 0:02:53.3]} 7... cxd4 {[%clk 0:03:01.3]} 8. Nxd4 {[%clk 0:02:52.6]}
8... d5 {[%clk 0:03:01.8]} 9. cxd5 {[%clk 0:02:49.5]} 9... exd5 {[%clk
0:03:01.3]} 10. b4 {[%clk 0:02:49.4]} 10... O-O {[%clk 0:02:59.5]} 11. Bb2
{[%clk 0:02:49.4]} 11... Re8 {[%clk 0:02:52]} 12. Be2 {[%clk 0:02:48.7]} 12...
Ne5 {[%clk 0:02:50.6]} 13. Rc1 {[%clk 0:02:45.7]} 13... a6 {[%clk 0:02:49.5]}
14. O-O {[%clk 0:02:44.9]} 14... b5 {[%clk 0:02:49.3]} 15. Rfd1 {[%clk
0:02:44.5]} 15... Nc4 {[%clk 0:02:49.3]} 16. Bxc4 {[%clk 0:02:40.4]} 16... dxc4
{[%clk 0:02:49.4]} 17. Nc6 {[%clk 0:02:33.5]} 17... Qxd2 {[%clk 0:02:48.8]} 18.
Rxd2 {[%clk 0:02:33.3]} 18... Bb7 {[%clk 0:02:48.4]} 19. Na5 {[%clk 0:02:29.9]}
19... Ne4 {[%clk 0:02:44]} 20. Rd7 {[%clk 0:02:26.7]} 20... Bc8 {[%clk
0:02:43.1]} 21. Rc7 {[%clk 0:02:12.6]} 21... Be6 {[%clk 0:02:39.8]} 22. Bd4
{[%clk 0:02:11.1]} 22... Rec8 {[%clk 0:02:31.2]} 23. Rxc8+ {[%clk 0:02:02.9]}
23... Rxc8 {[%clk 0:02:31.1]} 24. f3 {[%clk 0:01:52.3]} 24... Nd2 {[%clk
0:02:24.9]} 25. Kf2 {[%clk 0:01:46.3]} 25... f5 {[%clk 0:02:20.1]} 26. Ke2
{[%clk 0:01:44.5]} 26... Nb3 {[%clk 0:02:20.1]} 27. Nxb3 {[%clk 0:01:44.5]}
27... cxb3 {[%clk 0:02:20.3]} 28. Rxc8+ {[%clk 0:01:42]} 28... Bxc8 {[%clk
0:02:20.2]} 29. Kd3 {[%clk 0:01:40.7]} 29... Kf7 {[%clk 0:02:17.8]} 30. Bb2
{[%clk 0:01:39.6]} 30... Be6 {[%clk 0:01:58.7]} 31. Kd4 {[%clk 0:01:37.8]} 31...
Bc4 {[%clk 0:01:58.7]} 32. Kc5 {[%clk 0:01:32.3]} 32... Bf1 {[%clk 0:01:52]} 33.
Kb6 {[%clk 0:01:12]} 33... Bxg2 {[%clk 0:01:38.6]} 34. Kxa6 {[%clk 0:01:11.8]}
34... Bf1 {[%clk 0:01:38]} 35. Ka5 {[%clk 0:01:11.8]} 35... g5 {[%clk
0:01:36.1]} 36. a4 {[%clk 0:01:11.9]} 36... bxa4 {[%clk 0:01:36.4]} 37. Kxa4
{[%clk 0:01:12.2]} 37... Ke6 {[%clk 0:01:36.8]} 38. Kxb3 {[%clk 0:01:10.4]}
38... Be2 {[%clk 0:01:32.3]} 39. f4 {[%clk 0:01:07.9]} 39... g4 {[%clk
0:01:32.7]} 40. Bc3 {[%clk 0:01:04.8]} 40... Bb5 {[%clk 0:01:27]} 41. Be1 {[%clk
0:01:04.1]} 41... Kd5 {[%clk 0:01:27.2]} 42. Kc3 {[%clk 0:00:59.4]} 42... Ke4
{[%clk 0:01:27.1]} 43. Kd2 {[%clk 0:00:52.6]} 43... Kf3 {[%clk 0:01:26.3]} 44.
Bg3 {[%clk 0:00:50]} 44... h5 {[%clk 0:01:24.6]} 45. Bh4 {[%clk 0:00:46.7]}
45... Kg2 {[%clk 0:01:16.4]} 46. Bg3 {[%clk 0:00:44]} 46... Kh3 {[%clk
0:01:16.5]} 47. e4 {[%clk 0:00:42]} 47... h4 {[%clk 0:01:12.7]} 48. Bxh4 {[%clk
0:00:30.8]} 48... Kxh4 {[%clk 0:01:07.9]} 49. exf5 {[%clk 0:00:31]} 49... Kh5
{[%clk 0:01:03.6]} 50. Ke3 {[%clk 0:00:30.1]} 50... Bd7 {[%clk 0:00:57.1]} 51.
Ke4 {[%clk 0:00:25]} 51... Kh6 {[%clk 0:00:50.6]} 52. Ke5 {[%clk 0:00:21.7]}
52... Kg7 {[%clk 0:00:50.7]} 53. f6+ {[%clk 0:00:21.1]} 53... Kf7 {[%clk
0:00:50.8]} 54. f5 {[%clk 0:00:21.5]} 54... Bb5 {[%clk 0:00:45.2]} 55. Kf4
{[%clk 0:00:21]} 55... Be2 {[%clk 0:00:45.1]} 56. Kg3 {[%clk 0:00:20.2]} 56...
Kxf6 {[%clk 0:00:44.7]} 57. h3 {[%clk 0:00:20.4]} 57... gxh3 {[%clk 0:00:42.2]}
58. Kxh3 {[%clk 0:00:19.8]} 58... Kxf5 {[%clk 0:00:42.5]} 59. Kg3 {[%clk
0:00:19.4]} 59... Ke5 {[%clk 0:00:40.7]} 1/2-1/2

[Event "*** SCC Grand Prix: Titled Tuesday Blitz"]
[Site "Chess.com"]
[Date "2020.09.08"]
[Round "3"]
[White "woodpusher52"]
[Black "annacramling"]
[Result "1-0"]
[WhiteElo "2476"]
[BlackElo "2134"]
[TimeControl "180+1"]
[EndTime "10:29:35 PDT"]
[Termination "woodpusher52 won on time"]

1. e4 {[%clk 0:02:56.7]} 1... c5 {[%clk 0:02:59.7]} 2. Nf3 {[%clk 0:02:56.7]}
2... Nc6 {[%clk 0:02:58.4]} 3. d4 {[%clk 0:02:56.5]} 3... cxd4 {[%clk
0:02:57.7]} 4. Nxd4 {[%clk 0:02:57.4]} 4... Nf6 {[%clk 0:02:57.9]} 5. Nc3 {[%clk
0:02:57.2]} 5... e6 {[%clk 0:02:58]} 6. g3 {[%clk 0:02:52.1]} 6... Bb4 {[%clk
0:02:55.1]} 7. Bg2 {[%clk 0:02:52.1]} 7... O-O {[%clk 0:02:53.8]} 8. O-O {[%clk
0:02:51.9]} 8... a6 {[%clk 0:02:37]} 9. Nce2 {[%clk 0:02:42.9]} 9... d5 {[%clk
0:02:20.3]} 10. c3 {[%clk 0:02:30.2]} 10... Be7 {[%clk 0:02:12.7]} 11. exd5
{[%clk 0:02:24.9]} 11... exd5 {[%clk 0:02:12.3]} 12. Bf4 {[%clk 0:02:17.9]}
12... Bg4 {[%clk 0:02:04.8]} 13. h3 {[%clk 0:02:13.2]} 13... Bxe2 {[%clk
0:01:34.2]} 14. Nxe2 {[%clk 0:02:12.6]} 14... h6 {[%clk 0:01:23]} 15. Nd4 {[%clk
0:02:11.9]} 15... Bc5 {[%clk 0:01:20.7]} 16. Nb3 {[%clk 0:02:10.3]} 16... Bd6
{[%clk 0:01:11.5]} 17. Bxd6 {[%clk 0:02:05.6]} 17... Qxd6 {[%clk 0:01:12.4]} 18.
Nd4 {[%clk 0:02:06.1]} 18... Ne5 {[%clk 0:01:05.8]} 19. Nf3 {[%clk 0:02:00.6]}
19... Nc4 {[%clk 0:01:03.6]} 20. b3 {[%clk 0:01:57.8]} 20... Ne5 {[%clk
0:00:59.9]} 21. Nxe5 {[%clk 0:01:51.6]} 21... Qxe5 {[%clk 0:01:00.8]} 22. Qd4
{[%clk 0:01:47.4]} 22... Rfe8 {[%clk 0:00:56.3]} 23. Qxe5 {[%clk 0:01:45.7]}
23... Rxe5 {[%clk 0:00:55.8]} 24. Rfe1 {[%clk 0:01:46.6]} 24... Rae8 {[%clk
0:00:55]} 25. Kf1 {[%clk 0:01:46.5]} 25... Ne4 {[%clk 0:00:49.6]} 26. Bxe4
{[%clk 0:01:31.2]} 26... dxe4 {[%clk 0:00:47.5]} 27. Re3 {[%clk 0:01:31.2]}
27... f5 {[%clk 0:00:46.2]} 28. Rd1 {[%clk 0:01:30.4]} 28... g5 {[%clk
0:00:41.2]} 29. Rd6 {[%clk 0:01:12.5]} 29... f4 {[%clk 0:00:34.5]} 30. Re1
{[%clk 0:01:03.1]} 30... Kg7 {[%clk 0:00:28.6]} 31. c4 {[%clk 0:00:57.5]} 31...
e3 {[%clk 0:00:12.9]} 32. gxf4 {[%clk 0:00:51.6]} 32... gxf4 {[%clk 0:00:12.2]}
33. fxe3 {[%clk 0:00:51.4]} 33... fxe3 {[%clk 0:00:10.7]} 34. Ke2 {[%clk
0:00:50.2]} 34... R8e7 {[%clk 0:00:08.9]} 35. Rg1+ {[%clk 0:00:49.8]} 35... Kh7
{[%clk 0:00:09.1]} 36. Rgg6 {[%clk 0:00:49.5]} 36... Rh5 {[%clk 0:00:09.6]} 37.
Rg3 {[%clk 0:00:46.3]} 37... Rhe5 {[%clk 0:00:06.7]} 38. Rd3 {[%clk 0:00:45.4]}
38... Ra5 {[%clk 0:00:04.6]} 39. a4 {[%clk 0:00:43.4]} 39... b5 {[%clk 0:00:05]}
40. cxb5 {[%clk 0:00:35.7]} 40... axb5 {[%clk 0:00:05.9]} 41. Rd5 {[%clk
0:00:35.9]} 41... Ra6 {[%clk 0:00:02.5]} 42. Rxb5 {[%clk 0:00:33]} 42... Rf6
{[%clk 0:00:02]} 43. Rg2 {[%clk 0:00:28]} 43... Rfe6 {[%clk 0:00:01.2]} 44. Rd5
{[%clk 0:00:25.6]} 44... Re4 {[%clk 0:00:01.2]} 45. Rd3 {[%clk 0:00:25.3]} 1-0

[Event "*** SCC Grand Prix: Titled Tuesday Blitz"]
[Site "Chess.com"]
[Date "2020.09.08"]
[Round "3"]
[White "HrvojeZagreb"]
[Black "Shuvalov"]
[Result "1-0"]
[WhiteElo "2174"]
[BlackElo "2461"]
[TimeControl "180+1"]
[EndTime "10:29:37 PDT"]
[Termination "HrvojeZagreb won on time"]

1. d4 {[%clk 0:03:00.9]} 1... Nf6 {[%clk 0:02:41.2]} 2. Bf4 {[%clk 0:03:00.7]}
2... d5 {[%clk 0:02:40]} 3. e3 {[%clk 0:03:00.8]} 3... c5 {[%clk 0:02:39.6]} 4.
Nc3 {[%clk 0:03:00.3]} 4... a6 {[%clk 0:02:34.3]} 5. dxc5 {[%clk 0:03:00.2]}
5... e6 {[%clk 0:02:26.5]} 6. Na4 {[%clk 0:02:58.7]} 6... Bxc5 {[%clk
0:02:16.1]} 7. Nxc5 {[%clk 0:02:59.6]} 7... Qa5+ {[%clk 0:02:15.9]} 8. c3 {[%clk
0:03:00]} 8... Qxc5 {[%clk 0:02:16]} 9. Bd3 {[%clk 0:02:59.1]} 9... Nc6 {[%clk
0:02:15]} 10. Nf3 {[%clk 0:02:59.1]} 10... O-O {[%clk 0:02:10.9]} 11. O-O {[%clk
0:02:58.1]} 11... Re8 {[%clk 0:02:10.8]} 12. Ne5 {[%clk 0:02:57.9]} 12... Nxe5
{[%clk 0:02:05]} 13. Bxe5 {[%clk 0:02:58.8]} 13... Qe7 {[%clk 0:01:57.4]} 14.
Qf3 {[%clk 0:02:40.4]} 14... Bd7 {[%clk 0:01:53.2]} 15. a4 {[%clk 0:02:30.6]}
15... Bc6 {[%clk 0:01:51.2]} 16. Qg3 {[%clk 0:02:18.5]} 16... g6 {[%clk
0:01:32.6]} 17. Qh3 {[%clk 0:02:07]} 17... Nd7 {[%clk 0:01:29.9]} 18. Bg3 {[%clk
0:01:57.7]} 18... e5 {[%clk 0:01:28.2]} 19. Qh6 {[%clk 0:01:42.5]} 19... Qf8
{[%clk 0:01:14.4]} 20. Qg5 {[%clk 0:01:40.9]} 20... Qe7 {[%clk 0:01:13.5]} 21.
Qh6 {[%clk 0:01:40.6]} 21... f6 {[%clk 0:01:10.2]} 22. c4 {[%clk 0:01:34.4]}
22... Nc5 {[%clk 0:01:08.5]} 23. cxd5 {[%clk 0:01:30.7]} 23... Bxd5 {[%clk
0:01:05.3]} 24. Bb1 {[%clk 0:01:30.1]} 24... Qg7 {[%clk 0:00:53]} 25. Qh4 {[%clk
0:01:27.1]} 25... Nb3 {[%clk 0:00:42.2]} 26. Ba2 {[%clk 0:01:22.7]} 26... Qf7
{[%clk 0:00:36.1]} 27. Rad1 {[%clk 0:01:21.2]} 27... Be6 {[%clk 0:00:32.9]} 28.
Rd6 {[%clk 0:01:14.6]} 28... Rad8 {[%clk 0:00:24.9]} 29. Rxd8 {[%clk 0:01:09.3]}
29... Rxd8 {[%clk 0:00:24.6]} 30. Bxe5 {[%clk 0:01:09.5]} 30... g5 {[%clk
0:00:20.7]} 31. Qg3 {[%clk 0:01:00.2]} 31... Nd2 {[%clk 0:00:16.4]} 32. Bxf6
{[%clk 0:00:30.8]} 32... Nxf1 {[%clk 0:00:10.2]} 33. Qxg5+ {[%clk 0:00:30.8]}
33... Qg6 {[%clk 0:00:07.4]} 34. Bxe6+ {[%clk 0:00:30.3]} 34... Kf8 {[%clk
0:00:07.9]} 35. Bxd8 {[%clk 0:00:26.1]} 35... Qxg5 {[%clk 0:00:07.3]} 36. Bxg5
{[%clk 0:00:27]} 36... Nd2 {[%clk 0:00:07.7]} 37. Bd5 {[%clk 0:00:24]} 37... Kg7
{[%clk 0:00:05.1]} 38. e4 {[%clk 0:00:24]} 38... Nb1 {[%clk 0:00:04.7]} 39. Bb3
{[%clk 0:00:19.3]} 39... b5 {[%clk 0:00:04]} 40. axb5 {[%clk 0:00:18.8]} 40...
axb5 {[%clk 0:00:03.9]} 41. Bc2 {[%clk 0:00:19.2]} 41... h6 {[%clk 0:00:02]} 42.
Be3 {[%clk 0:00:19]} 1-0

[Event "*** SCC Grand Prix: Titled Tuesday Blitz"]
[Site "Chess.com"]
[Date "2020.09.08"]
[Round "3"]
[White "artichaud"]
[Black "GMaka"]
[Result "1-0"]
[WhiteElo "2234"]
[BlackElo "2359"]
[TimeControl "180+1"]
[EndTime "10:29:37 PDT"]
[Termination "artichaud won on time"]

1. e4 {[%clk 0:03:00]} 1... c6 {[%clk 0:02:59.6]} 2. d4 {[%clk 0:02:59.6]} 2...
d5 {[%clk 0:03:00.5]} 3. Nd2 {[%clk 0:02:59.5]} 3... g6 {[%clk 0:02:59.6]} 4. c3
{[%clk 0:02:58.1]} 4... Bg7 {[%clk 0:02:59.6]} 5. Bd3 {[%clk 0:02:56.6]} 5...
dxe4 {[%clk 0:02:51.3]} 6. Nxe4 {[%clk 0:02:55.9]} 6... Nf6 {[%clk 0:02:52.2]}
7. Nxf6+ {[%clk 0:02:54.5]} 7... exf6 {[%clk 0:02:53.1]} 8. Ne2 {[%clk
0:02:53.9]} 8... f5 {[%clk 0:02:52.2]} 9. Be3 {[%clk 0:02:50.1]} 9... O-O {[%clk
0:02:51.7]} 10. Qd2 {[%clk 0:02:48.6]} 10... Qa5 {[%clk 0:02:47.5]} 11. Bh6
{[%clk 0:02:45.4]} 11... Be6 {[%clk 0:02:45.7]} 12. h4 {[%clk 0:02:42.5]} 12...
Nd7 {[%clk 0:02:44.2]} 13. h5 {[%clk 0:02:41.8]} 13... Nf6 {[%clk 0:02:44.7]}
14. Bxg7 {[%clk 0:02:39]} 14... Kxg7 {[%clk 0:02:44.6]} 15. hxg6 {[%clk
0:02:38.2]} 15... fxg6 {[%clk 0:02:45.5]} 16. Qh6+ {[%clk 0:02:37.1]} 16... Kg8
{[%clk 0:02:44.9]} 17. Nf4 {[%clk 0:02:29.5]} 17... Bf7 {[%clk 0:02:38.8]} 18.
Kf1 {[%clk 0:02:21.8]} 18... Rae8 {[%clk 0:02:18.1]} 19. Qh4 {[%clk 0:02:08.9]}
19... Kg7 {[%clk 0:02:04.5]} 20. Qh6+ {[%clk 0:02:08.5]} 20... Kg8 {[%clk
0:02:04.6]} 21. Qh4 {[%clk 0:02:08.2]} 21... Qd8 {[%clk 0:01:46.6]} 22. Rh3
{[%clk 0:01:38.9]} 22... h5 {[%clk 0:01:25.1]} 23. Qg5 {[%clk 0:01:30.2]} 23...
Nh7 {[%clk 0:01:02.6]} 24. Qh6 {[%clk 0:01:20.5]} 24... Qg5 {[%clk 0:01:01.3]}
25. Qxg5 {[%clk 0:01:20.1]} 25... Nxg5 {[%clk 0:01:02.2]} 26. Rg3 {[%clk
0:01:21]} 26... Ne4 {[%clk 0:00:54.4]} 27. Bxe4 {[%clk 0:01:20.8]} 27... Rxe4
{[%clk 0:00:49.6]} 28. Nxg6 {[%clk 0:01:20]} 28... h4 {[%clk 0:00:44.4]} 29.
Nxh4+ {[%clk 0:01:17.2]} 29... Kh7 {[%clk 0:00:44.2]} 30. Nf3 {[%clk 0:01:09.5]}
30... Rg4 {[%clk 0:00:40.3]} 31. Rxg4 {[%clk 0:01:03.4]} 31... fxg4 {[%clk
0:00:41.2]} 32. Ne5 {[%clk 0:01:04.2]} 32... Be6 {[%clk 0:00:40.2]} 33. b3
{[%clk 0:00:54.9]} 33... Kh6 {[%clk 0:00:39.7]} 34. Re1 {[%clk 0:00:54.5]} 34...
Bf5 {[%clk 0:00:34.7]} 35. Re3 {[%clk 0:00:51.5]} 35... Kg5 {[%clk 0:00:34]} 36.
Ke2 {[%clk 0:00:46]} 36... a5 {[%clk 0:00:23.2]} 37. f3 {[%clk 0:00:37.1]} 37...
g3 {[%clk 0:00:17.8]} 38. f4+ {[%clk 0:00:35.8]} 38... Kxf4 {[%clk 0:00:09.8]}
39. Rf3+ {[%clk 0:00:35.8]} 39... Ke4 {[%clk 0:00:09.5]} 40. Rxg3 {[%clk
0:00:35]} 40... Rh8 {[%clk 0:00:06.6]} 41. Nd3 {[%clk 0:00:27.1]} 41... Rh4
{[%clk 0:00:02.8]} 42. Re3+ {[%clk 0:00:26.5]} 1-0

[Event "*** SCC Grand Prix: Titled Tuesday Blitz"]
[Site "Chess.com"]
[Date "2020.09.08"]
[Round "3"]
[White "pirulillo"]
[Black "ExtremeLearner"]
[Result "0-1"]
[WhiteElo "2224"]
[BlackElo "2446"]
[TimeControl "180+1"]
[EndTime "10:29:38 PDT"]
[Termination "ExtremeLearner won on time"]

1. e4 {[%clk 0:03:00.9]} 1... c6 {[%clk 0:03:00]} 2. d4 {[%clk 0:03:00.3]} 2...
d5 {[%clk 0:03:00.7]} 3. e5 {[%clk 0:02:59.6]} 3... Bf5 {[%clk 0:03:01]} 4. Be3
{[%clk 0:02:57.9]} 4... e6 {[%clk 0:03:00.5]} 5. Nd2 {[%clk 0:02:57.3]} 5... Nd7
{[%clk 0:02:55.7]} 6. c3 {[%clk 0:02:56.5]} 6... Qc7 {[%clk 0:02:54.4]} 7. b4
{[%clk 0:02:55.7]} 7... h6 {[%clk 0:02:53.7]} 8. Nb3 {[%clk 0:02:53]} 8... b6
{[%clk 0:02:53]} 9. a4 {[%clk 0:02:52.3]} 9... c5 {[%clk 0:02:49.8]} 10. bxc5
{[%clk 0:02:50]} 10... bxc5 {[%clk 0:02:49.3]} 11. Nxc5 {[%clk 0:02:47.9]} 11...
Nxc5 {[%clk 0:02:48.9]} 12. dxc5 {[%clk 0:02:47.9]} 12... a6 {[%clk 0:02:48.8]}
13. Qd4 {[%clk 0:02:29.8]} 13... Ne7 {[%clk 0:02:42.9]} 14. Nf3 {[%clk 0:02:26]}
14... Nc6 {[%clk 0:02:37]} 15. Qf4 {[%clk 0:02:22.5]} 15... g5 {[%clk
0:02:34.3]} 16. Qg3 {[%clk 0:02:20.7]} 16... Bg7 {[%clk 0:02:27.3]} 17. Bd4
{[%clk 0:02:19.7]} 17... Qa5 {[%clk 0:02:09.4]} 18. h3 {[%clk 0:02:12.5]} 18...
O-O {[%clk 0:01:56.8]} 19. Rd1 {[%clk 0:02:05.6]} 19... Qxa4 {[%clk 0:01:35.2]}
20. Bd3 {[%clk 0:02:01.6]} 20... Bxd3 {[%clk 0:01:10.7]} 21. Rxd3 {[%clk
0:02:02.5]} 21... Qc4 {[%clk 0:01:10]} 22. Nd2 {[%clk 0:01:58]} 22... Qb5 {[%clk
0:01:06.2]} 23. O-O {[%clk 0:01:56.5]} 23... Nxe5 {[%clk 0:01:00.6]} 24. Bxe5
{[%clk 0:01:36]} 24... Bxe5 {[%clk 0:00:57.9]} 25. c4 {[%clk 0:01:36.4]} 25...
dxc4 {[%clk 0:00:44.9]} 26. Qxe5 {[%clk 0:01:32.4]} 26... cxd3 {[%clk 0:00:45]}
27. Ne4 {[%clk 0:01:33]} 27... f5 {[%clk 0:00:33.6]} 28. Qxe6+ {[%clk
0:01:31.5]} 28... Kg7 {[%clk 0:00:32.8]} 29. Nd6 {[%clk 0:01:29.6]} 29... Qxc5
{[%clk 0:00:24.4]} 30. Qe7+ {[%clk 0:01:27.2]} 30... Kg6 {[%clk 0:00:23.4]} 31.
h4 {[%clk 0:01:15.4]} 31... Rae8 {[%clk 0:00:18.5]} 32. h5+ {[%clk 0:01:14.7]}
32... Kxh5 {[%clk 0:00:17.7]} 33. g4+ {[%clk 0:01:13.6]} 33... Kxg4 {[%clk
0:00:14.9]} 34. Qxe8 {[%clk 0:00:24.9]} 34... Rxe8 {[%clk 0:00:13.4]} 35. Nxe8
{[%clk 0:00:24.8]} 35... Kf3 {[%clk 0:00:10.6]} 36. Nf6 {[%clk 0:00:23.5]} 36...
Qd4 {[%clk 0:00:09.1]} 0-1

[Event "*** SCC Grand Prix: Titled Tuesday Blitz"]
[Site "Chess.com"]
[Date "2020.09.08"]
[Round "3"]
[White "NikolaGry"]
[Black "vladislavkovalev"]
[Result "0-1"]
[WhiteElo "2613"]
[BlackElo "2857"]
[TimeControl "180+1"]
[EndTime "10:29:39 PDT"]
[Termination "vladislavkovalev won by resignation"]

1. d4 {[%clk 0:03:00.9]} 1... Nf6 {[%clk 0:03:00.1]} 2. c4 {[%clk 0:03:00.5]}
2... g6 {[%clk 0:03:00.5]} 3. Nc3 {[%clk 0:03:00.2]} 3... Bg7 {[%clk 0:03:01.1]}
4. e4 {[%clk 0:03:00.1]} 4... d6 {[%clk 0:03:01.8]} 5. f3 {[%clk 0:03:00.3]}
5... O-O {[%clk 0:03:02.4]} 6. Nge2 {[%clk 0:03:00.5]} 6... c5 {[%clk
0:03:02.8]} 7. Be3 {[%clk 0:02:59.3]} 7... Nc6 {[%clk 0:03:02.9]} 8. Qd2 {[%clk
0:02:59.4]} 8... e6 {[%clk 0:03:01.4]} 9. Rd1 {[%clk 0:02:56.7]} 9... cxd4
{[%clk 0:03:00.3]} 10. Nxd4 {[%clk 0:02:56.4]} 10... d5 {[%clk 0:03:00.9]} 11.
Nxc6 {[%clk 0:02:42.4]} 11... bxc6 {[%clk 0:03:01.8]} 12. e5 {[%clk 0:02:42.5]}
12... Nd7 {[%clk 0:03:00.9]} 13. f4 {[%clk 0:02:42.3]} 13... Bb7 {[%clk
0:02:47.2]} 14. Be2 {[%clk 0:02:39.5]} 14... f6 {[%clk 0:02:47.1]} 15. exf6
{[%clk 0:02:36.7]} 15... Qxf6 {[%clk 0:02:48]} 16. O-O {[%clk 0:02:33.6]} 16...
Nb6 {[%clk 0:02:39.1]} 17. Qc2 {[%clk 0:02:20.1]} 17... Qe7 {[%clk 0:02:01]} 18.
c5 {[%clk 0:01:55.6]} 18... Nd7 {[%clk 0:02:00.6]} 19. b4 {[%clk 0:01:55.4]}
19... a5 {[%clk 0:01:48.3]} 20. a3 {[%clk 0:01:51.7]} 20... axb4 {[%clk
0:01:48.6]} 21. axb4 {[%clk 0:01:51.8]} 21... Ra3 {[%clk 0:01:49.1]} 22. Rd3
{[%clk 0:01:20.7]} 22... Rxc3 {[%clk 0:01:36.2]} 23. Rxc3 {[%clk 0:01:18.5]}
23... d4 {[%clk 0:01:36.9]} 24. Ra3 {[%clk 0:01:09.8]} 24... dxe3 {[%clk
0:01:36.2]} 25. Ra7 {[%clk 0:01:09.4]} 25... Rb8 {[%clk 0:01:17.1]} 26. Bf3
{[%clk 0:01:04.8]} 26... e5 {[%clk 0:01:11.3]} 27. f5 {[%clk 0:00:43.8]} 27...
e4 {[%clk 0:00:52.6]} 28. Qxe4 {[%clk 0:00:40.2]} 28... Qxe4 {[%clk 0:00:51.3]}
29. Bxe4 {[%clk 0:00:40.3]} 29... Bd4 {[%clk 0:00:44.4]} 30. Re1 {[%clk
0:00:28.9]} 30... Nf6 {[%clk 0:00:44.5]} 31. Bf3 {[%clk 0:00:22.6]} 31... gxf5
{[%clk 0:00:42.5]} 32. Kh1 {[%clk 0:00:22.3]} 32... f4 {[%clk 0:00:35.4]} 33.
Rd1 {[%clk 0:00:17.6]} 33... Bc3 {[%clk 0:00:31.8]} 34. b5 {[%clk 0:00:16.9]}
34... cxb5 {[%clk 0:00:32.7]} 35. Bxb7 {[%clk 0:00:13.3]} 35... e2 {[%clk
0:00:32.7]} 36. Rc1 {[%clk 0:00:12.8]} 36... e1=Q+ {[%clk 0:00:27]} 37. Rxe1
{[%clk 0:00:12.7]} 37... Bxe1 {[%clk 0:00:27.9]} 38. c6 {[%clk 0:00:11.6]} 38...
Ne8 {[%clk 0:00:27.8]} 39. Ra2 {[%clk 0:00:09.3]} 39... Bc3 {[%clk 0:00:26.2]}
40. Re2 {[%clk 0:00:08.5]} 40... Nc7 {[%clk 0:00:24.3]} 41. Re7 {[%clk
0:00:08.3]} 41... Ba5 {[%clk 0:00:19.8]} 42. h4 {[%clk 0:00:08]} 42... b4 {[%clk
0:00:19.9]} 43. Re5 {[%clk 0:00:08.2]} 43... Bb6 {[%clk 0:00:19.8]} 0-1

[Event "*** SCC Grand Prix: Titled Tuesday Blitz"]
[Site "Chess.com"]
[Date "2020.09.08"]
[Round "3"]
[White "Evgeny81"]
[Black "rasmussvane"]
[Result "1-0"]
[WhiteElo "2655"]
[BlackElo "2878"]
[TimeControl "180+1"]
[EndTime "10:29:40 PDT"]
[Termination "Evgeny81 won on time"]

1. d4 {[%clk 0:03:00.9]} 1... d5 {[%clk 0:03:00.4]} 2. c4 {[%clk 0:02:59.9]}
2... e6 {[%clk 0:03:00.9]} 3. Nf3 {[%clk 0:03:00.1]} 3... a6 {[%clk 0:03:01.4]}
4. e3 {[%clk 0:02:56.6]} 4... Nf6 {[%clk 0:03:01.5]} 5. Nc3 {[%clk 0:02:56.2]}
5... dxc4 {[%clk 0:03:01.9]} 6. Bxc4 {[%clk 0:02:56.9]} 6... b5 {[%clk
0:03:02.2]} 7. Be2 {[%clk 0:02:56.4]} 7... Bb7 {[%clk 0:03:02.8]} 8. O-O {[%clk
0:02:55.7]} 8... Nbd7 {[%clk 0:03:03.1]} 9. b3 {[%clk 0:02:56.1]} 9... c5 {[%clk
0:03:03.4]} 10. Bb2 {[%clk 0:02:55.7]} 10... Bd6 {[%clk 0:03:03.7]} 11. Rc1
{[%clk 0:02:53.9]} 11... O-O {[%clk 0:03:03.7]} 12. dxc5 {[%clk 0:02:50.3]}
12... Nxc5 {[%clk 0:02:59.7]} 13. Qc2 {[%clk 0:02:46.6]} 13... Qe7 {[%clk
0:02:44]} 14. Rfd1 {[%clk 0:02:43.1]} 14... Rac8 {[%clk 0:02:41.2]} 15. Qb1
{[%clk 0:02:30.5]} 15... Rfd8 {[%clk 0:02:40.9]} 16. h3 {[%clk 0:02:26.4]} 16...
b4 {[%clk 0:02:26.5]} 17. Na4 {[%clk 0:02:26.5]} 17... Be4 {[%clk 0:02:19]} 18.
Qa1 {[%clk 0:02:17.5]} 18... Nxa4 {[%clk 0:02:19]} 19. bxa4 {[%clk 0:02:18]}
19... Rxc1 {[%clk 0:02:11.4]} 20. Rxc1 {[%clk 0:02:15.4]} 20... a5 {[%clk
0:02:07.7]} 21. Nd4 {[%clk 0:02:08.1]} 21... Bb8 {[%clk 0:01:36.4]} 22. Bb5
{[%clk 0:02:02.2]} 22... Qd6 {[%clk 0:01:33.2]} 23. g3 {[%clk 0:01:49]} 23... h6
{[%clk 0:01:13.4]} 24. Nc6 {[%clk 0:01:41.8]} 24... Bxc6 {[%clk 0:01:12.7]} 25.
Bxc6 {[%clk 0:01:42.3]} 25... Nh5 {[%clk 0:01:02.6]} 26. Bf3 {[%clk 0:01:35]}
26... Nxg3 {[%clk 0:01:01]} 27. Rc6 {[%clk 0:00:46.6]} 27... Qd2 {[%clk
0:00:35.3]} 28. Bxg7 {[%clk 0:00:40.6]} 28... Nf5 {[%clk 0:00:16.7]} 29. Bf6
{[%clk 0:00:40]} 29... Re8 {[%clk 0:00:13.3]} 30. Rc4 {[%clk 0:00:33.7]} 30...
Kh7 {[%clk 0:00:12.6]} 31. Rg4 {[%clk 0:00:31.6]} 31... Rg8 {[%clk 0:00:09.9]}
32. Be4 {[%clk 0:00:31.4]} 32... h5 {[%clk 0:00:08]} 33. Rg2 {[%clk 0:00:30.1]}
33... Rxg2+ {[%clk 0:00:06.9]} 34. Kxg2 {[%clk 0:00:30.5]} 34... Kg8 {[%clk
0:00:04.2]} 35. Bxf5 {[%clk 0:00:26.6]} 35... exf5 {[%clk 0:00:05.1]} 36. Qd4
{[%clk 0:00:23.2]} 36... Qxd4 {[%clk 0:00:04.2]} 37. exd4 {[%clk 0:00:19]} 37...
Bc7 {[%clk 0:00:03.3]} 38. Kf3 {[%clk 0:00:10.7]} 38... Kf8 {[%clk 0:00:03.6]}
39. Be5 {[%clk 0:00:10.8]} 1-0